[Event "Titled Tuesday Blitz July 26 Late 2022"]
[White "MacDaddyMac"]
[Black "Bordi, Kevin"]
[BlackFideId "621862"]
[WhiteElo "2574"]
[BlackElo "2833"]
[Result "0-1"]
[Round "03"]
[TimeControl "180+1"]
[Date "2022.07.26"]
[WhiteClock "0:00:20"]
[BlackClock "0:00:12"]

1. e4 {[%clk 0:03:00]}  d5 {[%clk 0:03:00]} 2. exd5 {[%clk 0:03:01]}  Qxd5 {[%clk 0:03:01]} 3. Nc3 {[%clk 0:03:01]}  Qa5 {[%clk 0:03:01]} 4. Qf3 {[%clk 0:03:01]}  Nf6 {[%clk 0:02:59]} 5. h3 {[%clk 0:03:00]}  Nc6 {[%clk 0:02:57]} 6. Bb5 {[%clk 0:03:00]}  Bd7 {[%clk 0:02:58]} 7. Nge2 {[%clk 0:03:00]}  O-O-O {[%clk 0:02:55]} 8. O-O {[%clk 0:02:54]}  Kb8 {[%clk 0:02:48]} 9. d4 {[%clk 0:02:27]}  g5 {[%clk 0:02:45]} 10. Bxg5 {[%clk 0:02:24]}  Rg8 {[%clk 0:02:45]} 11. Bxf6 {[%clk 0:02:24]}  exf6 {[%clk 0:02:45]} 12. a3 {[%clk 0:02:21]}  a6 {[%clk 0:02:36]} 13. b4 {[%clk 0:02:19]}  Qb6 {[%clk 0:02:36]} 14. Bxc6 {[%clk 0:02:18]}  Bxc6 {[%clk 0:02:30]} 15. d5 {[%clk 0:02:19]}  Bd7 {[%clk 0:02:30]} 16. Ne4 {[%clk 0:02:12]}  f5 {[%clk 0:02:29]} 17. N4g3 {[%clk 0:02:12]}  Qf6 {[%clk 0:02:09]} 18. c4 {[%clk 0:02:00]}  Bh6 {[%clk 0:01:51]} 19. Rad1 {[%clk 0:01:55]}  f4 {[%clk 0:01:49]} 20. Nh5 {[%clk 0:01:56]}  Qh4 {[%clk 0:01:37]} 21. Nhxf4 {[%clk 0:01:55]}  Rde8 {[%clk 0:01:29]} 22. Rd3 {[%clk 0:01:51]}  Rg7 {[%clk 0:01:13]} 23. Nh5 {[%clk 0:01:41]}  Rg6 {[%clk 0:00:52]} 24. Nef4 {[%clk 0:01:09]}  Bxf4 {[%clk 0:00:51]} 25. Nxf4 {[%clk 0:01:09]}  Rf6 {[%clk 0:00:52]} 26. g3 {[%clk 0:01:07]}  Rg8 {[%clk 0:00:49]} 27. Kh2 {[%clk 0:01:03]}  Qh6 {[%clk 0:00:47]} 28. Re1 {[%clk 0:00:56]}  Bxh3 {[%clk 0:00:43]} 29. Qh5 {[%clk 0:00:54]}  Bf5 {[%clk 0:00:34]} 30. Rd4 {[%clk 0:00:46]}  Qg7 {[%clk 0:00:28]} 31. Kg2 {[%clk 0:00:36]}  Rh6 {[%clk 0:00:18]} 32. Qxf5 {[%clk 0:00:32]}  Qxd4 {[%clk 0:00:17]} 33. Qxf7 {[%clk 0:00:33]}  Rc8 {[%clk 0:00:14]} 34. c5 {[%clk 0:00:30]}  Rf6 {[%clk 0:00:14]} 35. Qxh7 {[%clk 0:00:28]}  Rxf4 {[%clk 0:00:11]} 36. gxf4 {[%clk 0:00:28]}  Qxf4 {[%clk 0:00:11]} 37. Re4 {[%clk 0:00:28]}  Qg5+ {[%clk 0:00:10]} 38. Kf1 {[%clk 0:00:23]}  Qxd5 {[%clk 0:00:10]} 39. Re3 {[%clk 0:00:22]}  Rd8 {[%clk 0:00:08]} 40. Qe4 {[%clk 0:00:16]}  Qd1+ {[%clk 0:00:08]} 41. Re1 {[%clk 0:00:15]}  Qh5 {[%clk 0:00:08]} 42. Re3 {[%clk 0:00:15]}  Rd1+ {[%clk 0:00:06]} 43. Re1 {[%clk 0:00:14]}  Qh3+ {[%clk 0:00:06]} 44. Kg1 {[%clk 0:00:14]}  Rd8 {[%clk 0:00:05]} 45. Qg2 {[%clk 0:00:13]}  Qh7 {[%clk 0:00:05]} 46. Qg4 {[%clk 0:00:14]}  Rg8 {[%clk 0:00:04]} 47. Qxg8+ {[%clk 0:00:11]}  Qxg8+ {[%clk 0:00:05]} 48. Kf1 {[%clk 0:00:11]}  Qc4+ {[%clk 0:00:06]} 49. Kg1 {[%clk 0:00:11]}  Qb3 {[%clk 0:00:07]} 50. Re3 {[%clk 0:00:12]}  Qb1+ {[%clk 0:00:07]} 51. Kg2 {[%clk 0:00:13]}  Qg6+ {[%clk 0:00:08]} 52. Kf3 {[%clk 0:00:13]}  Qf5+ {[%clk 0:00:08]} 53. Ke2 {[%clk 0:00:14]}  b6 {[%clk 0:00:09]} 54. cxb6 {[%clk 0:00:14]}  cxb6 {[%clk 0:00:09]} 55. Rf3 {[%clk 0:00:15]}  Qc2+ {[%clk 0:00:09]} 56. Kf1 {[%clk 0:00:16]}  Qd1+ {[%clk 0:00:09]} 57. Kg2 {[%clk 0:00:17]}  Qd5 {[%clk 0:00:09]} 58. Kg3 {[%clk 0:00:17]}  Qg5+ {[%clk 0:00:10]} 59. Kh2 {[%clk 0:00:17]}  Kb7 {[%clk 0:00:11]} 60. Re3 {[%clk 0:00:17]}  Qf4+ {[%clk 0:00:11]} 61. Kg2 {[%clk 0:00:16]}  Kc6 {[%clk 0:00:11]} 62. Kf1 {[%clk 0:00:17]}  Kb5 {[%clk 0:00:12]} 63. Ke2 {[%clk 0:00:18]}  Ka4 {[%clk 0:00:12]} 64. f3 {[%clk 0:00:18]}  Qc4+ {[%clk 0:00:12]} 65. Kf2 {[%clk 0:00:18]}  Qc2+ {[%clk 0:00:13]} 66. Kg3 {[%clk 0:00:19]}  Qc1 {[%clk 0:00:13]} 67. Kf2 {[%clk 0:00:19]}  Qb2+ {[%clk 0:00:13]} 68. Kg3 {[%clk 0:00:19]}  Qg7+ {[%clk 0:00:14]} 69. Kf2 {[%clk 0:00:19]}  Qg5 {[%clk 0:00:15]} 70. Ke2 {[%clk 0:00:20]}  Qf4 {[%clk 0:00:15]} 71. Kf2 {[%clk 0:00:20]}  Kb5 {[%clk 0:00:14]} 72. Ke2 {[%clk 0:00:21]}  Qh2+ {[%clk 0:00:14]} 73. Ke1 {[%clk 0:00:21]}  Kc4 {[%clk 0:00:13]} 74. Kf1 {[%clk 0:00:21]}  Kd4 {[%clk 0:00:13]} 75. Re4+ {[%clk 0:00:21]}  Kd3 {[%clk 0:00:13]} 76. Re6 {[%clk 0:00:20]}  Qh3+ {[%clk 0:00:12]} 0-1


[Site "https://www.chess.com"]

[Event "Titled Tuesday Blitz July 26 Late 2022"]
[White "Manelyuk, Daniil"]
[Black "Alexiadis, Hristos"]
[WhiteFideId "44173920"]
[BlackFideId "4249623"]
[WhiteElo "2209"]
[BlackElo "2416"]
[Result "0-1"]
[Round "03"]
[TimeControl "180+1"]
[Date "2022.07.27"]
[WhiteClock "0:00:02"]
[BlackClock "0:00:26"]

1. e4 {[%clk 0:03:00]}  e5 {[%clk 0:02:59]} 2. Nf3 {[%clk 0:03:00]}  Nc6 {[%clk 0:03:00]} 3. Bb5 {[%clk 0:03:00]}  Nge7 {[%clk 0:02:59]} 4. O-O {[%clk 0:02:58]}  a6 {[%clk 0:02:58]} 5. Ba4 {[%clk 0:02:58]}  g6 {[%clk 0:02:58]} 6. Nc3 {[%clk 0:02:48]}  Bg7 {[%clk 0:02:57]} 7. d4 {[%clk 0:02:49]}  Nxd4 {[%clk 0:02:54]} 8. Nxd4 {[%clk 0:02:34]}  exd4 {[%clk 0:02:55]} 9. Nd5 {[%clk 0:02:34]}  Nxd5 {[%clk 0:02:50]} 10. exd5 {[%clk 0:02:34]}  O-O {[%clk 0:02:51]} 11. Bf4 {[%clk 0:02:11]}  d6 {[%clk 0:02:46]} 12. Qd2 {[%clk 0:02:11]}  Qf6 {[%clk 0:02:36]} 13. Bh6 {[%clk 0:02:09]}  b5 {[%clk 0:02:30]} 14. Bxg7 {[%clk 0:02:07]}  Kxg7 {[%clk 0:02:30]} 15. Bb3 {[%clk 0:02:07]}  Re8 {[%clk 0:02:12]} 16. Rfd1 {[%clk 0:02:01]}  Bf5 {[%clk 0:02:12]} 17. Qxd4 {[%clk 0:01:56]}  Qxd4 {[%clk 0:02:13]} 18. Rxd4 {[%clk 0:01:56]}  Re2 {[%clk 0:02:00]} 19. Kf1 {[%clk 0:01:54]}  Rae8 {[%clk 0:01:55]} 20. Rc1 {[%clk 0:01:53]}  h5 {[%clk 0:01:53]} 21. a4 {[%clk 0:01:43]}  R2e4 {[%clk 0:01:24]} 22. Rxe4 {[%clk 0:01:38]}  Rxe4 {[%clk 0:01:24]} 23. axb5 {[%clk 0:01:38]}  axb5 {[%clk 0:01:25]} 24. Ra1 {[%clk 0:01:37]}  Rd4 {[%clk 0:01:04]} 25. Ra7 {[%clk 0:01:36]}  Be4 {[%clk 0:01:03]} 26. f3 {[%clk 0:01:07]}  Bxd5 {[%clk 0:01:02]} 27. c3 {[%clk 0:01:06]}  Bc4+ {[%clk 0:00:59]} 28. Ke1 {[%clk 0:00:58]}  Rd5 {[%clk 0:00:55]} 29. Bxc4 {[%clk 0:00:49]}  bxc4 {[%clk 0:00:56]} 30. Rb7 {[%clk 0:00:29]}  Rc5 {[%clk 0:00:52]} 31. Ke2 {[%clk 0:00:28]}  Kf6 {[%clk 0:00:53]} 32. Ke3 {[%clk 0:00:28]}  Ke5 {[%clk 0:00:52]} 33. Rb8 {[%clk 0:00:24]}  Rc6 {[%clk 0:00:50]} 34. Rf8 {[%clk 0:00:16]}  Kf6 {[%clk 0:00:47]} 35. Rc8 {[%clk 0:00:15]}  Ke5 {[%clk 0:00:40]} 36. g4 {[%clk 0:00:08]}  hxg4 {[%clk 0:00:29]} 37. fxg4 {[%clk 0:00:08]}  Kf6 {[%clk 0:00:29]} 38. h4 {[%clk 0:00:08]}  Rb6 {[%clk 0:00:30]} 39. Rxc7 {[%clk 0:00:08]}  Rxb2 {[%clk 0:00:30]} 40. Rxc4 {[%clk 0:00:08]}  Rh2 {[%clk 0:00:29]} 41. Kf3 {[%clk 0:00:07]}  Rxh4 {[%clk 0:00:28]} 42. Rd4 {[%clk 0:00:07]}  Rh3+ {[%clk 0:00:28]} 43. Kf4 {[%clk 0:00:06]}  g5+ {[%clk 0:00:25]} 44. Ke4 {[%clk 0:00:06]}  Ke6 {[%clk 0:00:26]} 45. Rc4 {[%clk 0:00:02]}  d5+ {[%clk 0:00:25]} 46. Kd4 {[%clk 0:00:02]}  dxc4 {[%clk 0:00:26]} 0-1


[Site "https://www.chess.com"]

[Event "Titled Tuesday Blitz July 26 Late 2022"]
[White "Melaugh, Shane"]
[Black "Hardaway, Brewington"]
[WhiteFideId "2509580"]
[BlackFideId "30941849"]
[WhiteElo "1938"]
[BlackElo "1813"]
[Result "0-1"]
[Round "03"]
[TimeControl "180+1"]
[Date "2022.07.27"]
[WhiteClock "0:00:03"]
[BlackClock "0:00:22"]

1. c4 {[%clk 0:03:00]}  Nf6 {[%clk 0:03:00]} 2. Nc3 {[%clk 0:03:00]}  e5 {[%clk 0:03:00]} 3. Nf3 {[%clk 0:03:00]}  d6 {[%clk 0:02:59]} 4. e4 {[%clk 0:02:58]}  g6 {[%clk 0:02:59]} 5. g3 {[%clk 0:02:55]}  Bg7 {[%clk 0:02:59]} 6. Bg2 {[%clk 0:02:55]}  O-O {[%clk 0:03:00]} 7. O-O {[%clk 0:02:54]}  Nc6 {[%clk 0:03:00]} 8. d3 {[%clk 0:02:53]}  Bg4 {[%clk 0:03:01]} 9. h3 {[%clk 0:02:53]}  Bxf3 {[%clk 0:03:00]} 10. Qxf3 {[%clk 0:02:43]}  Nd4 {[%clk 0:03:01]} 11. Qd1 {[%clk 0:02:42]}  Nd7 {[%clk 0:03:00]} 12. Be3 {[%clk 0:02:40]}  Ne6 {[%clk 0:03:00]} 13. f4 {[%clk 0:02:38]}  c6 {[%clk 0:02:59]} 14. f5 {[%clk 0:02:38]}  Nd4 {[%clk 0:02:55]} 15. Qd2 {[%clk 0:02:29]}  Nc5 {[%clk 0:02:48]} 16. b4 {[%clk 0:02:20]}  Na6 {[%clk 0:02:46]} 17. a3 {[%clk 0:02:20]}  Nc7 {[%clk 0:02:46]} 18. Rad1 {[%clk 0:02:06]}  a5 {[%clk 0:02:46]} 19. Ne2 {[%clk 0:02:03]}  axb4 {[%clk 0:02:45]} 20. axb4 {[%clk 0:02:03]}  d5 {[%clk 0:02:35]} 21. Nxd4 {[%clk 0:01:53]}  exd4 {[%clk 0:02:34]} 22. Bh6 {[%clk 0:01:53]}  Be5 {[%clk 0:02:01]} 23. Bxf8 {[%clk 0:01:46]}  Qxf8 {[%clk 0:02:02]} 24. exd5 {[%clk 0:01:25]}  cxd5 {[%clk 0:02:00]} 25. cxd5 {[%clk 0:01:22]}  Bxg3 {[%clk 0:01:58]} 26. Qg5 {[%clk 0:01:00]}  Bd6 {[%clk 0:01:57]} 27. fxg6 {[%clk 0:01:00]}  hxg6 {[%clk 0:01:57]} 28. h4 {[%clk 0:00:57]}  Qe7 {[%clk 0:01:43]} 29. Qxe7 {[%clk 0:00:49]}  Bxe7 {[%clk 0:01:43]} 30. b5 {[%clk 0:00:43]}  Nxb5 {[%clk 0:01:41]} 31. Rb1 {[%clk 0:00:41]}  Nd6 {[%clk 0:01:40]} 32. Rf4 {[%clk 0:00:35]}  Nf5 {[%clk 0:01:26]} 33. h5 {[%clk 0:00:33]}  Bg5 {[%clk 0:01:25]} 34. Rg4 {[%clk 0:00:29]}  Be3+ {[%clk 0:01:25]} 35. Kh1 {[%clk 0:00:25]}  g5 {[%clk 0:01:23]} 36. Be4 {[%clk 0:00:22]}  Nh6 {[%clk 0:01:22]} 37. Rg2 {[%clk 0:00:21]}  f5 {[%clk 0:01:21]} 38. Bf3 {[%clk 0:00:20]}  g4 {[%clk 0:01:22]} 39. Rxb7 {[%clk 0:00:20]}  Ra1+ {[%clk 0:01:20]} 40. Kh2 {[%clk 0:00:21]}  Bf4+ {[%clk 0:01:21]} 41. Rg3 {[%clk 0:00:19]}  Bxg3+ {[%clk 0:01:20]} 42. Kxg3 {[%clk 0:00:20]}  gxf3 {[%clk 0:01:20]} 43. Kxf3 {[%clk 0:00:20]}  Rf1+ {[%clk 0:01:16]} 44. Ke2 {[%clk 0:00:20]}  Rc1 {[%clk 0:01:01]} 45. d6 {[%clk 0:00:21]}  Nf7 {[%clk 0:00:55]} 46. d7 {[%clk 0:00:17]}  Rc2+ {[%clk 0:00:40]} 47. Kd1 {[%clk 0:00:17]}  Rc3 {[%clk 0:00:36]} 48. Rb8+ {[%clk 0:00:10]}  Kg7 {[%clk 0:00:35]} 49. d8=Q {[%clk 0:00:11]}  Nxd8 {[%clk 0:00:36]} 50. Rxd8 {[%clk 0:00:12]}  Rxd3+ {[%clk 0:00:36]} 51. Ke2 {[%clk 0:00:13]}  Re3+ {[%clk 0:00:36]} 52. Kf2 {[%clk 0:00:13]}  Re4 {[%clk 0:00:37]} 53. Rd6 {[%clk 0:00:11]}  Rh4 {[%clk 0:00:35]} 54. Rg6+ {[%clk 0:00:11]}  Kf7 {[%clk 0:00:35]} 55. Rd6 {[%clk 0:00:11]}  Ke7 {[%clk 0:00:35]} 56. Rh6 {[%clk 0:00:09]}  d3 {[%clk 0:00:29]} 57. Ke3 {[%clk 0:00:09]}  Rd4 {[%clk 0:00:26]} 58. Rh7+ {[%clk 0:00:04]}  Kf6 {[%clk 0:00:26]} 59. Kd2 {[%clk 0:00:05]}  Kg5 {[%clk 0:00:24]} 60. h6 {[%clk 0:00:05]}  Kg6 {[%clk 0:00:24]} 61. Rh8 {[%clk 0:00:05]}  f4 {[%clk 0:00:20]} 62. Kd1 {[%clk 0:00:01]}  d2 {[%clk 0:00:18]} 63. Rf8 {[%clk 0:00:02]}  Kxh6 {[%clk 0:00:18]} 64. Rf7 {[%clk 0:00:03]}  Kg5 {[%clk 0:00:18]} 65. Rf8 {[%clk 0:00:03]}  Kg4 {[%clk 0:00:19]} 66. Rg8+ {[%clk 0:00:04]}  Kf3 {[%clk 0:00:20]} 67. Rf8 {[%clk 0:00:04]}  Ke3 {[%clk 0:00:20]} 68. Re8+ {[%clk 0:00:05]}  Kf3 {[%clk 0:00:20]} 69. Rg8 {[%clk 0:00:05]}  Kf2 {[%clk 0:00:20]} 70. Rh8 {[%clk 0:00:05]}  f3 {[%clk 0:00:20]} 71. Rh2+ {[%clk 0:00:05]}  Kg1 {[%clk 0:00:20]} 72. Rh8 {[%clk 0:00:03]}  Rg4 {[%clk 0:00:20]} 73. Kxd2 {[%clk 0:00:01]}  f2 {[%clk 0:00:20]} 74. Rf8 {[%clk 0:00:01]}  f1=Q {[%clk 0:00:21]} 75. Rxf1+ {[%clk 0:00:02]}  Kxf1 {[%clk 0:00:21]} 76. Ke3 {[%clk 0:00:03]}  Kg2 {[%clk 0:00:22]} 0-1


[Site "https://www.chess.com"]

[Event "Titled Tuesday Blitz July 26 Late 2022"]
[White "Melikyan, Gnel"]
[Black "Fiedorek, Michal"]
[WhiteFideId "54109990"]
[BlackFideId "1199528"]
[WhiteElo "1772"]
[BlackElo "1833"]
[Result "1/2-1/2"]
[Round "03"]
[TimeControl "180+1"]
[Date "2022.07.27"]
[WhiteClock "0:00:09"]
[BlackClock "0:00:08"]

1. a3 {[%clk 0:02:59]}  g6 {[%clk 0:02:59]} 2. c4 {[%clk 0:02:58]}  Bg7 {[%clk 0:02:59]} 3. Nf3 {[%clk 0:02:58]}  Nf6 {[%clk 0:02:59]} 4. Nc3 {[%clk 0:02:58]}  c5 {[%clk 0:02:59]} 5. e3 {[%clk 0:02:58]}  O-O {[%clk 0:02:59]} 6. b4 {[%clk 0:02:57]}  b6 {[%clk 0:02:58]} 7. Be2 {[%clk 0:02:56]}  Bb7 {[%clk 0:02:58]} 8. Rb1 {[%clk 0:02:56]}  cxb4 {[%clk 0:02:58]} 9. axb4 {[%clk 0:02:56]}  d6 {[%clk 0:02:58]} 10. d4 {[%clk 0:02:54]}  Nbd7 {[%clk 0:02:55]} 11. Bb2 {[%clk 0:02:48]}  Ne4 {[%clk 0:02:54]} 12. Nxe4 {[%clk 0:02:40]}  Bxe4 {[%clk 0:02:55]} 13. Bd3 {[%clk 0:02:39]}  Bb7 {[%clk 0:02:44]} 14. O-O {[%clk 0:02:34]}  e5 {[%clk 0:02:41]} 15. dxe5 {[%clk 0:02:30]}  dxe5 {[%clk 0:02:32]} 16. Nd2 {[%clk 0:02:19]}  Qc7 {[%clk 0:02:27]} 17. Qb3 {[%clk 0:02:08]}  Rfe8 {[%clk 0:02:21]} 18. Be4 {[%clk 0:02:02]}  a5 {[%clk 0:02:04]} 19. bxa5 {[%clk 0:01:43]}  Rxa5 {[%clk 0:01:35]} 20. Bxb7 {[%clk 0:01:33]}  Qxb7 {[%clk 0:01:34]} 21. Bc3 {[%clk 0:01:33]}  Ra7 {[%clk 0:01:33]} 22. Qb5 {[%clk 0:01:20]}  Rc8 {[%clk 0:01:23]} 23. Rfd1 {[%clk 0:00:48]}  Qc6 {[%clk 0:01:23]} 24. Qxc6 {[%clk 0:00:32]}  Rxc6 {[%clk 0:01:24]} 25. Kf1 {[%clk 0:00:30]}  f5 {[%clk 0:01:15]} 26. Ra1 {[%clk 0:00:24]}  Rcc7 {[%clk 0:01:10]} 27. Ke2 {[%clk 0:00:20]}  Kf7 {[%clk 0:01:09]} 28. f3 {[%clk 0:00:20]}  h5 {[%clk 0:00:56]} 29. Rdb1 {[%clk 0:00:20]}  Bf6 {[%clk 0:00:47]} 30. h3 {[%clk 0:00:18]}  Be7 {[%clk 0:00:42]} 31. e4 {[%clk 0:00:18]}  f4 {[%clk 0:00:37]} 32. Rxa7 {[%clk 0:00:18]}  Rxa7 {[%clk 0:00:37]} 33. Ra1 {[%clk 0:00:18]}  Rc7 {[%clk 0:00:33]} 34. Kd3 {[%clk 0:00:18]}  Nc5+ {[%clk 0:00:32]} 35. Kc2 {[%clk 0:00:18]}  Ne6 {[%clk 0:00:29]} 36. Kb3 {[%clk 0:00:17]}  Kf6 {[%clk 0:00:23]} 37. Ra8 {[%clk 0:00:16]}  Bc5 {[%clk 0:00:23]} 38. Re8 {[%clk 0:00:14]}  Bd4 {[%clk 0:00:22]} 39. Bb4 {[%clk 0:00:13]}  Ra7 {[%clk 0:00:21]} 40. Ba3 {[%clk 0:00:12]}  Nc5+ {[%clk 0:00:20]} 41. Bxc5 {[%clk 0:00:12]}  bxc5 {[%clk 0:00:19]} 42. Rf8+ {[%clk 0:00:12]}  Kg7 {[%clk 0:00:19]} 43. Rd8 {[%clk 0:00:09]}  Ra1 {[%clk 0:00:19]} 44. Rd7+ {[%clk 0:00:06]}  Kh6 {[%clk 0:00:19]} 45. Kc2 {[%clk 0:00:06]}  Kg5 {[%clk 0:00:19]} 46. Nb3 {[%clk 0:00:06]}  Rg1 {[%clk 0:00:18]} 47. Nxd4 {[%clk 0:00:06]}  exd4 {[%clk 0:00:18]} 48. Rd5+ {[%clk 0:00:06]}  Kf6 {[%clk 0:00:17]} 49. Rxc5 {[%clk 0:00:07]}  Rxg2+ {[%clk 0:00:18]} 50. Kd3 {[%clk 0:00:08]}  Rg3 {[%clk 0:00:18]} 51. Rc6+ {[%clk 0:00:08]}  Ke5 {[%clk 0:00:17]} 52. Rc5+ {[%clk 0:00:09]}  Ke6 {[%clk 0:00:17]} 53. Kxd4 {[%clk 0:00:09]}  Rxf3 {[%clk 0:00:14]} 54. Rc6+ {[%clk 0:00:09]}  Kf7 {[%clk 0:00:13]} 55. h4 {[%clk 0:00:09]}  Rf1 {[%clk 0:00:07]} 56. Ke5 {[%clk 0:00:09]}  f3 {[%clk 0:00:07]} 57. Rf6+ {[%clk 0:00:10]}  Kg7 {[%clk 0:00:07]} 58. c5 {[%clk 0:00:10]}  f2 {[%clk 0:00:06]} 59. c6 {[%clk 0:00:10]}  Rc1 {[%clk 0:00:04]} 60. Rxf2 {[%clk 0:00:10]}  Rxc6 {[%clk 0:00:04]} 61. Rd2 {[%clk 0:00:11]}  Rc3 {[%clk 0:00:03]} 62. Rh2 {[%clk 0:00:10]}  Rc6 {[%clk 0:00:02]} 63. Kd5 {[%clk 0:00:10]}  Rc3 {[%clk 0:00:01]} 64. e5 {[%clk 0:00:11]}  Rd3+ {[%clk 0:00:02]} 65. Ke6 {[%clk 0:00:11]}  Rd1 {[%clk 0:00:02]} 66. Ke7 {[%clk 0:00:11]}  Re1 {[%clk 0:00:02]} 67. e6 {[%clk 0:00:11]}  Re4 {[%clk 0:00:03]} 68. Kd7 {[%clk 0:00:11]}  Kf6 {[%clk 0:00:03]} 69. Rf2+ {[%clk 0:00:11]}  Kg7 {[%clk 0:00:04]} 70. e7 {[%clk 0:00:11]}  Rd4+ {[%clk 0:00:04]} 71. Ke8 {[%clk 0:00:12]}  Re4 {[%clk 0:00:04]} 72. Rd2 {[%clk 0:00:12]}  g5 {[%clk 0:00:04]} 73. hxg5 {[%clk 0:00:11]}  h4 {[%clk 0:00:05]} 74. Rh2 {[%clk 0:00:10]}  Kg6 {[%clk 0:00:04]} 75. Kf8 {[%clk 0:00:10]}  Kxg5 {[%clk 0:00:04]} 76. e8=Q {[%clk 0:00:07]}  Rxe8+ {[%clk 0:00:04]} 77. Kxe8 {[%clk 0:00:08]}  Kg4 {[%clk 0:00:05]} 78. Kf7 {[%clk 0:00:08]}  Kg3 {[%clk 0:00:05]} 79. Rc2 {[%clk 0:00:08]}  h3 {[%clk 0:00:06]} 80. Kf6 {[%clk 0:00:08]}  h2 {[%clk 0:00:06]} 81. Rc1 {[%clk 0:00:09]}  Kg2 {[%clk 0:00:06]} 82. Kf5 {[%clk 0:00:09]}  h1=Q {[%clk 0:00:07]} 83. Rxh1 {[%clk 0:00:09]}  Kxh1 {[%clk 0:00:08]} 1/2-1/2


[Site "https://www.chess.com"]

[Event "Titled Tuesday Blitz July 26 Late 2022"]
[White "Naroditsky, Daniel"]
[Black "Djordjevic, Vuk"]
[WhiteFideId "2026961"]
[BlackFideId "902098"]
[WhiteElo "2608"]
[BlackElo "2456"]
[Result "1-0"]
[Round "03"]
[TimeControl "180+1"]
[Date "2022.07.26"]
[WhiteClock "0:00:18"]
[BlackClock "0:00:02"]

1. c4 {[%clk 0:03:00]}  e5 {[%clk 0:03:00]} 2. Nc3 {[%clk 0:02:58]}  Nc6 {[%clk 0:03:00]} 3. Nf3 {[%clk 0:02:54]}  g6 {[%clk 0:03:00]} 4. e3 {[%clk 0:02:50]}  Bg7 {[%clk 0:03:00]} 5. d4 {[%clk 0:02:51]}  d6 {[%clk 0:03:00]} 6. Be2 {[%clk 0:02:47]}  exd4 {[%clk 0:02:56]} 7. exd4 {[%clk 0:02:44]}  Bg4 {[%clk 0:02:41]} 8. Be3 {[%clk 0:02:42]}  Nge7 {[%clk 0:02:38]} 9. d5 {[%clk 0:02:30]}  Bxf3 {[%clk 0:02:37]} 10. gxf3 {[%clk 0:02:17]}  Ne5 {[%clk 0:02:29]} 11. f4 {[%clk 0:02:17]}  Nd7 {[%clk 0:02:28]} 12. Bd3 {[%clk 0:02:17]}  O-O {[%clk 0:02:00]} 13. Qf3 {[%clk 0:02:17]}  c6 {[%clk 0:01:49]} 14. h4 {[%clk 0:02:18]}  cxd5 {[%clk 0:01:44]} 15. cxd5 {[%clk 0:02:19]}  Rc8 {[%clk 0:01:17]} 16. Kf1 {[%clk 0:02:18]}  Nf6 {[%clk 0:00:51]} 17. h5 {[%clk 0:02:13]}  Nxh5 {[%clk 0:00:51]} 18. f5 {[%clk 0:02:13]}  Bxc3 {[%clk 0:00:39]} 19. bxc3 {[%clk 0:02:10]}  Rxc3 {[%clk 0:00:40]} 20. Bd4 {[%clk 0:01:54]}  Rxd3 {[%clk 0:00:39]} 21. Qxd3 {[%clk 0:01:55]}  Nxf5 {[%clk 0:00:39]} 22. Bb2 {[%clk 0:01:42]}  Qg5 {[%clk 0:00:33]} 23. Re1 {[%clk 0:01:31]}  Qf4 {[%clk 0:00:19]} 24. Rg1 {[%clk 0:01:21]}  Nh6 {[%clk 0:00:12]} 25. Bc1 {[%clk 0:01:18]}  Qf5 {[%clk 0:00:10]} 26. Qd4 {[%clk 0:01:13]}  Qh3+ {[%clk 0:00:06]} 27. Ke2 {[%clk 0:01:14]}  Nf5 {[%clk 0:00:05]} 28. Qe4 {[%clk 0:01:09]}  Qc3 {[%clk 0:00:05]} 29. Qxf5 {[%clk 0:01:06]}  Re8+ {[%clk 0:00:05]} 30. Be3 {[%clk 0:01:00]}  Qc4+ {[%clk 0:00:05]} 31. Kf3 {[%clk 0:00:59]}  Re5 {[%clk 0:00:06]} 32. Qg4 {[%clk 0:00:41]}  Qxd5+ {[%clk 0:00:04]} 33. Ke2 {[%clk 0:00:42]}  Qb5+ {[%clk 0:00:04]} 34. Kf3 {[%clk 0:00:40]}  Qd5+ {[%clk 0:00:04]} 35. Ke2 {[%clk 0:00:41]}  Qb5+ {[%clk 0:00:04]} 36. Kd2 {[%clk 0:00:20]}  Qb2+ {[%clk 0:00:04]} 37. Kd3 {[%clk 0:00:20]}  Rd5+ {[%clk 0:00:04]} 38. Bd4 {[%clk 0:00:21]}  Qa3+ {[%clk 0:00:04]} 39. Ke2 {[%clk 0:00:18]}  Qxa2+ {[%clk 0:00:04]} 40. Kf3 {[%clk 0:00:17]}  Qb3+ {[%clk 0:00:04]} 41. Re3 {[%clk 0:00:18]}  Qb5 {[%clk 0:00:02]} 42. Qc8+ {[%clk 0:00:18]} 1-0


[Site "https://www.chess.com"]

[Event "Titled Tuesday Blitz July 26 Late 2022"]
[White "Omariev, Maksim"]
[Black "Oro, Luis"]
[WhiteFideId "4193423"]
[BlackFideId "104094"]
[WhiteElo "2500"]
[BlackElo "2349"]
[Result "1-0"]
[Round "03"]
[TimeControl "180+1"]
[Date "2022.07.27"]
[WhiteClock "0:00:09"]
[BlackClock "0:00:02"]

1. b3 {[%clk 0:03:00]}  Nf6 {[%clk 0:02:55]} 2. Bb2 {[%clk 0:03:01]}  d5 {[%clk 0:02:55]} 3. h3 {[%clk 0:03:02]}  e6 {[%clk 0:02:55]} 4. g4 {[%clk 0:03:03]}  c5 {[%clk 0:02:55]} 5. Bg2 {[%clk 0:03:03]}  Nc6 {[%clk 0:02:55]} 6. g5 {[%clk 0:03:04]}  Nd7 {[%clk 0:02:54]} 7. h4 {[%clk 0:03:03]}  d4 {[%clk 0:02:52]} 8. e3 {[%clk 0:03:02]}  e5 {[%clk 0:02:52]} 9. c3 {[%clk 0:02:58]}  Qc7 {[%clk 0:02:46]} 10. Na3 {[%clk 0:02:56]}  a6 {[%clk 0:02:44]} 11. cxd4 {[%clk 0:02:55]}  exd4 {[%clk 0:02:44]} 12. Rc1 {[%clk 0:02:52]}  dxe3 {[%clk 0:02:25]} 13. dxe3 {[%clk 0:02:51]}  b5 {[%clk 0:02:05]} 14. Ne2 {[%clk 0:02:40]}  Bb7 {[%clk 0:02:00]} 15. Nf4 {[%clk 0:02:40]}  Nb4 {[%clk 0:01:52]} 16. Nd5 {[%clk 0:02:02]}  Nxd5 {[%clk 0:01:36]} 17. Bxd5 {[%clk 0:02:03]}  Nb6 {[%clk 0:01:27]} 18. Bxb7 {[%clk 0:01:56]}  Qxb7 {[%clk 0:01:26]} 19. Rg1 {[%clk 0:01:49]}  Rd8 {[%clk 0:01:25]} 20. Qg4 {[%clk 0:01:44]}  Rg8 {[%clk 0:00:51]} 21. Nc2 {[%clk 0:01:39]}  Be7 {[%clk 0:00:50]} 22. e4 {[%clk 0:01:39]}  c4 {[%clk 0:00:47]} 23. Ne3 {[%clk 0:01:36]}  Bb4+ {[%clk 0:00:39]} 24. Kf1 {[%clk 0:01:36]}  Rd2 {[%clk 0:00:39]} 25. Rc2 {[%clk 0:01:32]}  Rxc2 {[%clk 0:00:38]} 26. Nxc2 {[%clk 0:01:33]}  Be7 {[%clk 0:00:36]} 27. Kg2 {[%clk 0:01:26]}  Qc7 {[%clk 0:00:24]} 28. bxc4 {[%clk 0:01:20]}  Nxc4 {[%clk 0:00:23]} 29. Ba1 {[%clk 0:01:12]}  Ne5 {[%clk 0:00:17]} 30. Qe2 {[%clk 0:01:07]}  Ng6 {[%clk 0:00:16]} 31. Kh1 {[%clk 0:00:42]}  Nxh4 {[%clk 0:00:16]} 32. Ne3 {[%clk 0:00:39]}  Qd7 {[%clk 0:00:12]} 33. Rg4 {[%clk 0:00:30]}  Ng6 {[%clk 0:00:11]} 34. f4 {[%clk 0:00:30]}  Bc5 {[%clk 0:00:08]} 35. Nd5 {[%clk 0:00:29]}  Kf8 {[%clk 0:00:07]} 36. f5 {[%clk 0:00:28]}  Ne7 {[%clk 0:00:06]} 37. Qc2 {[%clk 0:00:27]}  Bd6 {[%clk 0:00:04]} 38. Nb6 {[%clk 0:00:25]}  Qc6 {[%clk 0:00:03]} 39. Qxc6 {[%clk 0:00:21]}  Nxc6 {[%clk 0:00:04]} 40. e5 {[%clk 0:00:17]}  Bxe5 {[%clk 0:00:03]} 41. Nd7+ {[%clk 0:00:17]}  Ke7 {[%clk 0:00:04]} 42. Nxe5 {[%clk 0:00:17]}  Nd8 {[%clk 0:00:03]} 43. f6+ {[%clk 0:00:15]}  Ke6 {[%clk 0:00:04]} 44. fxg7 {[%clk 0:00:14]}  Rxg7 {[%clk 0:00:02]} 45. Nf3 {[%clk 0:00:14]}  Rg8 {[%clk 0:00:03]} 46. Nd4+ {[%clk 0:00:14]}  Kd5 {[%clk 0:00:03]} 47. Nf5 {[%clk 0:00:15]}  Nc6 {[%clk 0:00:03]} 48. Nh6 {[%clk 0:00:15]}  Rg6 {[%clk 0:00:02]} 49. Bf6 {[%clk 0:00:15]}  Ke6 {[%clk 0:00:03]} 50. Re4+ {[%clk 0:00:15]}  Kd5 {[%clk 0:00:03]} 51. Re8 {[%clk 0:00:15]}  Nb4 {[%clk 0:00:03]} 52. a3 {[%clk 0:00:13]}  Nd3 {[%clk 0:00:03]} 53. Nxf7 {[%clk 0:00:11]}  Nf4 {[%clk 0:00:03]} 54. Rd8+ {[%clk 0:00:10]}  Ke6 {[%clk 0:00:02]} 55. Ne5 {[%clk 0:00:09]} 1-0


[Site "https://www.chess.com"]